fUST/lending_fUST_20240702
["ID","MTS","AMOUNT","RATE_DAILY","PERIOD"]
[330862846,1719877846675,-500.0,0.00015799,2]
[330862847,1719877846686,-500.0,0.00015799,2]
[330862848,1719877846698,-500.0,0.00015799,2]
[330862849,1719877846708,-500.0,0.00015799,2]
[330862850,1719877846719,-500.0,0.00015799,2]
[330862851,1719877846730,-500.0,0.00015799,2]
[330862852,1719877846741,-500.0,0.00015799,2]
[330862853,1719877846751,-500.0,0.00015799,2]
[330862854,1719877846763,-500.0,0.00015799,2]
[330862855,1719877846773,-500.0,0.00015799,2]
[330862856,1719877846784,-500.0,0.00015799,2]
[330862857,1719877846795,-500.0,0.00015799,2]
[330862858,1719877846806,-500.0,0.00015799,2]
[330862859,1719877846817,-500.0,0.00015799,2]
[330862860,1719877846828,-500.0,0.00015799,2]
[330862861,1719877846839,-500.0,0.00015799,2]
[330862862,1719877846849,-500.0,0.00015799,2]
[330862863,1719877846860,-771.1,0.00015799,2]
[330862864,1719877846870,-500.0,0.00015799,2]
[330862865,1719877846880,-500.0,0.00015799,2]
[330862866,1719877846891,-500.0,0.00015799,2]
[330862867,1719877846901,-500.0,0.00015799,2]
[330862868,1719877846912,-500.0,0.00015799,2]
[330862869,1719877846923,-500.0,0.00015799,2]
[330862870,1719877846934,-500.0,0.00015799,2]
[330862871,1719877846944,-2432.72,0.00015799,2]
[330862872,1719877846955,-500.0,0.00015799,2]
[330862873,1719877846966,-500.0,0.00015799,2]
[330862874,1719877846978,-530.9,0.00015799,2]
[330862875,1719877846988,-500.0,0.00015799,2]
[330862876,1719877846999,-500.0,0.00015799,2]
[330862877,1719877847010,-501.86308992,0.00015799,2]
[330862878,1719877847021,-1192.89,0.00015799,2]
[330862879,1719877847032,-500.0,0.00015799,2]
[330862880,1719877847042,-500.0,0.00015799,2]
[330862881,1719877847053,-429.73367006,0.00015799,2]
[330862882,1719877847064,-782.7,0.00015799,2]
[330862883,1719877847074,-500.0,0.00015799,2]
[330862884,1719877847086,-500.0,0.00015799,2]
[330862885,1719877847096,-500.0,0.00015799,2]
[330862886,1719877847107,-14815.1,0.00015799,2]
[330862887,1719877847118,-500.0,0.00015799,2]
[330862888,1719877847128,-500.0,0.00015799,2]
[330862889,1719877847139,-500.0,0.00015799,2]
[330862890,1719877847149,-500.0,0.00015799,2]
[330862891,1719877847159,-1102.5,0.00015799,2]
[330862892,1719877847170,-1387.04,0.00015799,2]
[330862893,1719877847180,-500.0,0.00015799,2]
[330862894,1719877847191,-500.0,0.00015799,2]
[330862895,1719877847201,-5508.97,0.00015799,2]
[330862896,1719877847212,-500.0,0.00015799,2]
[330862897,1719877847222,-1604.26,0.00015799,2]
[330862898,1719877847232,-2553.5,0.00015799,2]
[330862899,1719877847243,-500.0,0.00015799,2]
[330862900,1719877847254,-500.0,0.00015799,2]
[330862901,1719877847264,-500.0,0.00015799,2]
[330862902,1719877847275,-7165.68,0.00015799,2]
[330862903,1719877847285,-500.0,0.00015799,2]
[330862904,1719877847295,-298.92843496,0.00015799,2]
[330862905,1719877847306,-500.0,0.00015799,2]
[330862906,1719877847317,-663.72,0.00015799,2]
[330862907,1719877847327,-500.0,0.00015799,2]
[330862908,1719877847338,-500.0,0.00015799,2]
[330862909,1719877847349,-500.0,0.00015799,2]
[330862910,1719877847365,-500.0,0.00015799,2]
[330862911,1719877847376,-500.0,0.00015799,2]
[330862912,1719877847388,-535.78,0.00015799,2]
[330862913,1719877847401,-500.0,0.00015799,2]
[330862914,1719877847412,-873.04,0.00015799,2]
[330862915,1719877847424,-500.0,0.00015799,2]
[330862916,1719877847438,-500.0,0.00015799,2]
[330862917,1719877847620,-521.56,0.00015799,2]
[330862918,1719877847635,-593.76,0.00015799,2]
[330862919,1719877847646,-500.0,0.00015799,2]
[330862920,1719877847656,-500.0,0.00015799,2]
[330862921,1719877847666,-500.0,0.00015799,2]
[330862922,1719877847675,-500.0,0.00015799,2]
[330862923,1719877847684,-500.0,0.00015799,2]
[330862924,1719877847694,-500.0,0.00015799,2]
[330862925,1719877847703,-500.0,0.00015799,2]
[330862926,1719877847712,-500.0,0.00015799,2]
[330862927,1719877847721,-500.0,0.00015799,2]
[330862928,1719877847731,-594.86,0.00015799,2]
[330862929,1719877847740,-500.0,0.00015799,2]
[330862930,1719877847749,-500.0,0.00015799,2]
[330862931,1719877847760,-610.0,0.00015877,2]
[330862932,1719877847769,-4940.69044064,0.00015879,2]
[330862933,1719877847779,-500.0,0.00015879,2]
[330862934,1719877847788,-500.0,0.00015879,2]
[330862935,1719877847797,-500.0,0.00015879,2]
[330862936,1719877847806,-298.43466753,0.00015879,2]
[330862937,1719877847816,-500.0,0.00015879,2]
[330862938,1719877847825,-189.41402852,0.00015879,2]
[330862939,1719877847835,-500.0,0.00015879,2]
[330862940,1719877847844,-500.0,0.00015879,2]
[330862941,1719877847854,-500.0,0.00015879,2]
[330862942,1719877847863,-500.0,0.00015879,2]
[330862943,1719877847872,-500.0,0.00015879,2]
[330862944,1719877847881,-500.0,0.00015879,2]
[330862945,1719877847891,-671.33,0.00015879,2]
[330862946,1719877847899,-500.0,0.00015879,2]
[330862947,1719877847908,-500.0,0.00015879,2]
[330862948,1719877847918,-500.0,0.00015879,2]
[330862949,1719877847926,-500.0,0.00015879,2]
[330862950,1719877847935,-500.0,0.00015879,2]
[330862951,1719877847944,-500.0,0.00015879,2]
[330862952,1719877847953,-396.91624313,0.00015879,2]
[330862953,1719877847962,-500.0,0.00015879,2]
[330862954,1719877847971,-500.0,0.00015879,2]
[330862955,1719877847980,-500.0,0.00015879,2]
[330862956,1719877847989,-632.20802835,0.00015879,2]
[330862957,1719877847998,-500.0,0.00015879,2]
[330862958,1719877848007,-500.0,0.00015879,2]
[330862959,1719877848016,-500.0,0.00015879,2]
[330862960,1719877848025,-500.0,0.00015879,2]
[330862961,1719877848034,-500.0,0.00015879,2]
[330862962,1719877848044,-500.0,0.00015879,2]
[330862963,1719877848053,-500.0,0.00015879,2]
[330862964,1719877848062,-500.0,0.00015879,2]
[330862965,1719877848072,-500.0,0.00015879,2]
[330862966,1719877848081,-512.38204881,0.00015879,2]
[330862967,1719877848091,-534.02,0.00015879,2]
[330862968,1719877848100,-500.0,0.00015879,2]
[330862969,1719877848109,-500.0,0.00015879,2]
[330862970,1719877848118,-501.89677971,0.00015879,2]
[330862971,1719877848127,-500.0,0.00015879,2]
[330862972,1719877848136,-500.0,0.00015879,2]
[330862973,1719877848145,-500.0,0.00015879,2]
[330862974,1719877848154,-630.61307542,0.00015879,2]
[330862975,1719877848163,-500.0,0.00015879,2]
[330862976,1719877848172,-500.0,0.00015879,2]
[330862977,1719877848181,-500.0,0.00015879,2]
[330862978,1719877848190,-500.0,0.00015879,2]
[330862979,1719877848199,-154.83742071,0.00015879,2]
[330862980,1719877848209,-507.74588228,0.00015879,2]
[330862981,1719877848218,-501.43093412,0.00015879,2]
[330862982,1719877848227,-500.0,0.00015879,2]
[330862983,1719877848236,-500.0,0.00015879,2]
[330862984,1719877848245,-500.0,0.00015879,2]
[330862985,1719877848253,-500.0,0.00015879,2]
[330862986,1719877848262,-500.0,0.00015879,2]
[330862987,1719877848271,-500.0,0.00015879,2]
[330862988,1719877848280,-587.95921515,0.00015879,2]
[330862989,1719877848290,-503.37198889,0.00015879,2]
[330862990,1719877848299,-500.0,0.00015879,2]
[330862991,1719877848308,-502.26008542,0.00015879,2]
[330862992,1719877848317,-167.23776087,0.00015879,2]
[330862993,1719877848327,-500.0,0.00015879,2]
[330862994,1719877848337,-583.62,0.00015879,2]
[330862995,1719877848346,-500.0,0.00015879,2]
[330862996,1719877848360,-500.0,0.00015879,2]
[330862997,1719877848369,-159.91708296,0.00015879,2]
[330862998,1719877848379,-500.0,0.00015879,2]
[330862999,1719877848388,-500.0,0.00015879,2]
[330863000,1719877848399,-600.18,0.00015879,2]
[330863001,1719877848408,-500.0,0.00015879,2]
[330863002,1719877848418,-500.0,0.00015879,2]
[330863003,1719877848427,-500.0,0.00015879,2]
[330863004,1719877848438,-500.0,0.00015879,2]
[330863005,1719877848449,-500.0,0.00015879,2]
[330863006,1719877848458,-500.0,0.00015879,2]
[330863007,1719877848468,-500.0,0.00015879,2]
[330863008,1719877848478,-500.0,0.00015879,2]
[330863009,1719877848487,-578.59,0.00015879,2]
[330863010,1719877848497,-500.0,0.00015879,2]
[330863011,1719877848506,-500.0,0.00015879,2]
[330863012,1719877848516,-500.0,0.00015879,2]
[330863013,1719877848526,-500.0,0.00015879,2]
[330863014,1719877848535,-500.0,0.00015879,2]
[330863015,1719877848544,-500.0,0.00015879,2]
[330863016,1719877848554,-500.0,0.00015879,2]
[330863017,1719877848564,-500.0,0.00015879,2]
[330863018,1719877848573,-527.89208856,0.00015879,2]
[330863019,1719877848584,-500.0,0.00015879,2]
[330863020,1719877848593,-506.84,0.00015879,2]
[330863021,1719877848602,-501.51483843,0.00015879,2]
[330863022,1719877848612,-500.0,0.00015879,2]
[330863023,1719877848621,-500.0,0.00015879,2]
[330863024,1719877848632,-500.0,0.00015879,2]
[330863025,1719877848642,-500.0,0.00015879,2]
[330863026,1719877848651,-500.0,0.00015879,2]
[330863027,1719877848660,-232.82306914,0.00015879,2]
[330863028,1719877848669,-500.0,0.00015879,2]
[330863029,1719877848679,-500.0,0.00015879,2]
[330863030,1719877848689,-500.0,0.00015879,2]
[330863031,1719877848698,-500.0,0.00015879,2]
[330863032,1719877848708,-500.0,0.00015879,2]
[330863033,1719877848717,-500.0,0.00015879,2]
[330863034,1719877848726,-500.0,0.00015879,2]
[330863035,1719877848735,-504.46240011,0.00015879,2]
[330863036,1719877848745,-504.18956487,0.00015879,2]
[330863037,1719877848754,-502.17500822,0.00015879,2]
[330863038,1719877848764,-500.97574307,0.00015879,2]
[330863039,1719877848773,-500.0,0.00015879,2]
[330863040,1719877848782,-500.0,0.00015879,2]
[330863041,1719877848791,-244.19140516,0.00015879,2]
[330863042,1719877848801,-500.0,0.00015879,2]
[330863043,1719877848810,-500.0,0.00015879,2]
[330863044,1719877848819,-500.0,0.00015879,2]
[330863045,1719877848829,-967.48,0.00015879,2]
[330863046,1719877848839,-500.0,0.00015879,2]
[330863047,1719877848848,-500.0,0.00015879,2]
[330863048,1719877848858,-500.0,0.00015879,2]
[330863049,1719877848866,-500.0,0.00015879,2]
[330863050,1719877848875,-521.59,0.00015879,2]
[330863051,1719877848884,-543.28,0.00015879,2]
[330863052,1719877848893,-500.0,0.00015879,2]
[330863053,1719877848902,-500.0,0.00015879,2]
[330863054,1719877848911,-500.0,0.00015879,2]
[330863055,1719877848921,-500.0,0.00015879,2]
[330863056,1719877848929,-500.0,0.00015879,2]
[330863057,1719877848939,-500.0,0.00015879,2]
[330863058,1719877848947,-500.0,0.00015879,2]
[330863059,1719877848956,-500.0,0.00015879,2]
[330863060,1719877848966,-500.0,0.00015879,2]
[330863061,1719877848975,-540.46,0.00015879,2]
[330863062,1719877848984,-500.0,0.00015879,2]
[330863063,1719877848994,-500.0,0.00015879,2]
[330863064,1719877849003,-503.7121567,0.00015879,2]
[330863065,1719877849011,-500.0,0.00015879,2]
[330863066,1719877849020,-500.0,0.00015879,2]
[330863067,1719877849030,-500.0,0.00015879,2]
[330863068,1719877849039,-577.54,0.00015879,2]
[330863069,1719877849048,-500.0,0.00015879,2]
[330863070,1719877849058,-500.0,0.00015879,2]
[330863071,1719877849067,-500.0,0.00015879,2]
[330863072,1719877849076,-500.0,0.00015879,2]
[330863073,1719877849086,-500.0,0.00015879,2]
[330863074,1719877849095,-500.0,0.00015879,2]
[330863075,1719877849104,-500.0,0.00015879,2]
[330863076,1719877849113,-505.08785458,0.00015879,2]
[330863077,1719877849123,-500.0,0.00015879,2]
[330863078,1719877849132,-500.0,0.00015879,2]
[330863079,1719877849141,-500.0,0.00015879,2]
[330863080,1719877849150,-500.0,0.00015879,2]
[330863081,1719877849159,-500.0,0.00015879,2]
[330863082,1719877849169,-500.0,0.00015879,2]
[330863083,1719877849179,-500.0,0.00015879,2]
[330863084,1719877849188,-505.79916326,0.00015879,2]
[330863085,1719877849197,-500.0,0.00015879,2]
[330863086,1719877849206,-505.42943135,0.00015879,2]
[330863087,1719877849216,-502.77777337,0.00015879,2]
[330863088,1719877849225,-341.90054982,0.00015879,2]
[330863089,1719877849234,-503.41226062,0.00015879,2]
[330863090,1719877849243,-500.0,0.00015879,2]
[330863091,1719877849252,-500.0,0.00015879,2]
[330863092,1719877849262,-502.99931478,0.00015879,2]
[330863093,1719877849272,-500.0,0.00015879,2]
[330863094,1719877849281,-500.0,0.00015879,2]
[330863095,1719877849290,-500.0,0.00015879,2]
[330863096,1719877849300,-500.0,0.00015879,2]
[330863097,1719877849309,-500.0,0.00015879,2]
[330863098,1719877849318,-500.0,0.00015879,2]
[330863099,1719877849327,-500.0,0.00015879,2]
[330863100,1719877849337,-509.17,0.00015879,2]
[330863101,1719877849346,-500.0,0.00015879,2]
[330863102,1719877849362,-500.0,0.00015879,2]
[330863103,1719877849371,-500.0,0.00015879,2]
[330863104,1719877849380,-1000.0,0.00015879,2]
[330863105,1719877849389,-723.5,0.00015879,2]
[330863106,1719877849401,-500.0,0.00015879,2]
[330863107,1719877849410,-500.0,0.00015879,2]
[330863108,1719877849420,-500.0,0.00015879,2]
[330863109,1719877849429,-500.0,0.00015879,2]
[330863110,1719877849441,-450.02226167,0.00015879,2]
[330863111,1719877849451,-530.00970841,0.00015879,2]
[330863112,1719877849461,-502.92061456,0.00015879,2]
[330863113,1719877849470,-500.0,0.00015879,2]
[330863114,1719877849479,-500.0,0.00015879,2]
[330863115,1719877849489,-500.0,0.00015879,2]
[330863116,1719877849498,-500.0,0.00015879,2]
[330863117,1719877849507,-500.0,0.00015879,2]
[330863118,1719877849517,-500.0,0.00015879,2]
[330863119,1719877849527,-500.0,0.00015879,2]
[330863120,1719877849536,-500.0,0.00015879,2]
[330863121,1719877849545,-500.0,0.00015879,2]
[330863122,1719877849555,-500.0,0.00015879,2]
[330863123,1719877849564,-500.0,0.00015879,2]
[330863124,1719877849573,-195.30012991,0.00015879,2]
[330863125,1719877849586,-500.0,0.00015879,2]
[330863126,1719877849596,-500.0,0.00015879,2]
[330863127,1719877849605,-845.21,0.00015879,2]
[330863128,1719877849614,-500.0,0.00015879,2]
[330863129,1719877849623,-504.17989085,0.00015879,2]
[330863130,1719877849635,-500.0,0.00015879,2]
[330863131,1719877849644,-500.0,0.00015879,2]
[330863132,1719877849654,-500.0,0.00015879,2]
[330863133,1719877849663,-500.0,0.00015879,2]
[330863134,1719877849672,-7282.84,0.00015879,2]
[330863135,1719877849681,-500.0,0.00015879,2]
[330863136,1719877849690,-500.0,0.00015879,2]
[330863137,1719877849699,-503.90909712,0.00015879,2]
[330863138,1719877849708,-500.0,0.00015879,2]
[330863139,1719877849717,-500.0,0.00015879,2]
[330863140,1719877849726,-414.37852674,0.00015879,2]
[330863141,1719877849735,-500.0,0.00015879,2]
[330863142,1719877849744,-504.44198053,0.00015879,2]
[330863143,1719877849754,-500.0,0.00015879,2]
[330863144,1719877849763,-500.0,0.00015879,2]
[330863145,1719877849772,-544.82,0.00015879,2]
[330863146,1719877849780,-500.0,0.00015879,2]
[330863147,1719877849789,-501.54494569,0.00015879,2]
[330863148,1719877849798,-500.0,0.00015879,2]
[330863149,1719877849807,-500.0,0.00015879,2]
[330863150,1719877849816,-500.0,0.00015879,2]
[330863151,1719877849825,-3875.42,0.00015879,2]
[330863152,1719877849841,-500.0,0.00015879,2]
[330863153,1719877849850,-532.5,0.00015879,2]
[330863154,1719877849861,-592.76,0.00015879,2]
[330863155,1719877849870,-478.79453528,0.00015879,2]
[330863156,1719877849879,-500.0,0.00015879,2]
[330863157,1719877849888,-500.0,0.00015879,2]
[330863158,1719877849896,-500.0,0.00015879,2]
[330863159,1719877849905,-500.0,0.00015879,2]
[330863160,1719877849914,-500.0,0.00015879,2]
[330863161,1719877849923,-500.0,0.00015879,2]
[330863162,1719877849932,-500.0,0.00015879,2]
[330863163,1719877849942,-500.0,0.00015879,2]
[330863164,1719877849950,-766.13,0.00015879,2]
[330863165,1719877849959,-500.0,0.00015879,2]
[330863166,1719877849969,-500.0,0.00015879,2]
[330863167,1719877849978,-500.0,0.00015879,2]
[330863168,1719877849987,-500.0,0.00015879,2]
[330863169,1719877849996,-200.26,0.00015879,2]
[330863170,1719877850005,-543.30095194,0.00015879,2]
[330863171,1719877850014,-500.0,0.00015879,2]
[330863172,1719877850022,-500.0,0.00015879,2]
[330863173,1719877850031,-500.0,0.00015879,2]
[330863174,1719877850040,-501.82,0.00015879,2]
[330863175,1719877850049,-500.0,0.00015879,2]
[330863176,1719877850059,-500.0,0.00015879,2]
[330863177,1719877850067,-503.14885768,0.00015879,2]
[330863178,1719877850076,-532.08,0.00015879,2]
[330863179,1719877850087,-500.0,0.00015879,2]
[330863180,1719877850096,-500.0,0.00015879,2]
[330863181,1719877850105,-500.0,0.00015879,2]
[330863182,1719877850114,-621.66458705,0.00015879,2]
[330863183,1719877850123,-925.65,0.00015879,2]
[330863184,1719877850132,-500.0,0.00015879,2]
[330863185,1719877850140,-500.0,0.00015879,2]
[330863186,1719877850149,-500.0,0.00015879,2]
[330863187,1719877850158,-500.0,0.00015879,2]
[330863188,1719877850168,-500.0,0.00015879,2]
[330863189,1719877850177,-500.0,0.00015879,2]
[330863190,1719877850187,-500.0,0.00015879,2]
[330863191,1719877850196,-500.0,0.00015879,2]
[330863192,1719877850204,-500.0,0.00015879,2]
[330863193,1719877850214,-158.37959125,0.00015879,2]
[330863194,1719877850223,-500.0,0.00015879,2]
[330863195,1719877850232,-501.70025537,0.00015879,2]
[330863196,1719877850241,-500.0,0.00015879,2]
[330863197,1719877850250,-500.0,0.00015879,2]
[330863198,1719877850259,-500.0,0.00015879,2]
[330863199,1719877850268,-500.0,0.00015879,2]
[330863200,1719877850277,-500.0,0.00015879,2]
[330863201,1719877850287,-154.81422293,0.00015879,2]
[330863202,1719877850295,-500.0,0.00015879,2]
[330863203,1719877850305,-500.0,0.00015879,2]
[330863204,1719877850314,-500.0,0.00015879,2]
[330863205,1719877850323,-500.0,0.00015879,2]
[330863206,1719877850332,-500.0,0.00015879,2]
[330863207,1719877850342,-500.0,0.00015879,2]
[330863208,1719877850352,-500.0,0.00015879,2]
[330863209,1719877850364,-512.9,0.00015879,2]
[330863210,1719877850373,-505.19475979,0.00015879,2]
[330863211,1719877850383,-500.0,0.00015879,2]
[330863212,1719877850392,-500.0,0.00015879,2]
[330863213,1719877850402,-1243.5,0.00015879,2]
[330863214,1719877850411,-500.0,0.00015879,2]
[330863215,1719877850421,-500.0,0.00015879,2]
[330863216,1719877850432,-500.0,0.00015879,2]
[330863217,1719877850442,-500.0,0.00015879,2]
[330863218,1719877850452,-500.0,0.00015879,2]
[330863219,1719877850462,-500.0,0.00015879,2]
[330863220,1719877850472,-500.0,0.00015879,2]
[330863221,1719877850482,-500.0,0.00015879,2]
[330863222,1719877850492,-500.0,0.00015879,2]
[330863223,1719877850502,-500.0,0.00015879,2]
[330863224,1719877850512,-330.91746075,0.00015879,2]
[330863225,1719877850522,-500.0,0.00015879,2]
[330863226,1719877850532,-502.94616136,0.00015879,2]
[330863227,1719877850542,-500.0,0.00015879,2]
[330863228,1719877850551,-502.62554742,0.00015879,2]
[330863229,1719877850561,-433.03104651,0.00015879,2]
[330863230,1719877850571,-500.0,0.00015879,2]
[330863231,1719877850581,-603.89,0.00015879,2]
[330863232,1719877850592,-500.0,0.00015879,2]
[330863233,1719877850718,-500.0,0.00015879,2]
[330863234,1719877850727,-500.0,0.00015879,2]
[330863235,1719877850737,-500.0,0.00015879,2]
[330863236,1719877850747,-826.77,0.00015879,2]
[330863237,1719877850756,-500.0,0.00015879,2]
[330863238,1719877850766,-500.0,0.00015879,2]
[330863239,1719877850775,-500.0,0.00015879,2]
[330863240,1719877850785,-502.02692124,0.00015879,2]
[330863241,1719877850795,-507.36049027,0.00015879,2]
[330863242,1719877850804,-636.87,0.00015879,2]
[330863243,1719877850813,-500.0,0.00015879,2]
[330863244,1719877850823,-500.0,0.00015879,2]
[330863245,1719877850833,-500.0,0.00015879,2]
[330863246,1719877850842,-500.0,0.00015879,2]
[330863247,1719877850852,-500.0,0.00015879,2]
[330863248,1719877850862,-504.8467975,0.00015879,2]
[330863249,1719877850871,-669.74,0.00015879,2]
[330863250,1719877850881,-1599.01,0.00015879,2]
[330863251,1719877850890,-782.7,0.00015879,2]
[330863252,1719877850900,-782.7,0.00015879,2]
[330863253,1719877850909,-782.7,0.00015879,2]
[330863254,1719877850919,-500.0,0.00015879,2]
[330863255,1719877850928,-732.02,0.00015879,2]
[330863256,1719877850937,-1107.64,0.00015879,2]
[330863257,1719877850948,-499.24199418,0.00015879,2]
[330863258,1719877850958,-593.06,0.00015879,2]
[330863259,1719877850967,-500.0,0.00015879,2]
[330863260,1719877850977,-500.0,0.00015879,2]
[330863261,1719877850987,-4774.95,0.00015879,2]
[330863262,1719877850996,-500.0,0.00015879,2]
[330863263,1719877851006,-10223.94,0.00015879,2]
[330863264,1719877851015,-782.7,0.0001588,2]
[330863265,1719877851025,-490.82318913,0.00015995,2]
[330863266,1719877851034,-877.0,0.00016014,2]
[330863267,1719877851043,-245.192,0.00016014,2]
[330863268,1719877851053,-153.0,0.000161,2]
[330863269,1719877851063,-153.0,0.000161,2]
[330863270,1719877851072,-154.035907,0.000161,2]
[330863271,1719877851082,-153.0,0.000161,2]
[330863272,1719877851092,-153.0,0.000161,2]
[330863273,1719877851102,-153.0,0.000161,2]
[330863274,1719877851112,-153.0,0.000161,2]
[330863275,1719877851121,-153.0,0.000161,2]
[330863276,1719877851130,-153.0,0.000161,2]
[330863277,1719877851139,-153.0,0.000161,2]
[330863278,1719877851149,-206.0292962,0.000161,2]
[330863279,1719877851158,-153.0,0.000161,2]
[330863280,1719877851167,-206.0292962,0.000161,2]
[330863281,1719877851177,-153.0,0.000161,2]
[330863282,1719877851186,-153.0,0.000161,2]
[330863283,1719877851196,-206.0292962,0.000161,2]
[330863284,1719877851205,-153.0,0.000161,2]
[330863285,1719877851215,-153.0,0.000161,2]
[330863286,1719877851224,-153.0,0.000161,2]
[330863287,1719877851233,-306.6868827,0.000161,2]
[330863288,1719877851243,-153.0,0.000161,2]
[330863289,1719877851252,-305.9999999,0.000161,2]
[330863290,1719877851262,-153.0,0.000161,2]
[330863291,1719877851271,-153.0,0.000161,2]
[330863292,1719877851280,-416.1318773,0.000161,2]
[330863293,1719877851290,-312.1291059,0.000161,2]
[330863294,1719877851299,-153.0,0.000161,2]
[330863295,1719877851309,-206.0292962,0.000161,2]
[330863296,1719877851319,-153.0,0.000161,2]
[330863297,1719877851329,-153.0,0.000161,2]
[330863298,1719877851341,-153.0,0.000161,2]
[330863299,1719877851350,-153.0,0.000161,2]
[330863300,1719877851365,-153.0,0.000161,2]
[330863301,1719877851375,-261.8330909,0.000161,2]
[330863302,1719877851384,-153.0,0.000161,2]
[330863303,1719877851394,-153.0,0.000161,2]
[330863304,1719877851404,-306.0,0.000161,2]
[330863305,1719877851414,-153.0,0.000161,2]
[330863306,1719877851423,-153.0,0.000161,2]
[330863307,1719877851434,-206.0292962,0.000161,2]
[330863308,1719877851444,-153.0,0.000161,2]
[330863309,1719877851454,-206.0292962,0.000161,2]
[330863310,1719877851463,-153.0,0.000161,2]
[330863311,1719877851473,-153.0,0.000161,2]
[330863312,1719877851482,-206.0292962,0.000161,2]
[330863313,1719877851492,-153.0,0.00016164,2]
[330863314,1719877851501,-153.0,0.00016164,2]
[330863315,1719877851510,-153.0,0.000162,2]
[330863316,1719877851519,-153.0,0.000162,2]
[330863317,1719877851529,-153.0,0.000162,2]
[330863318,1719877851538,-206.0292962,0.000162,2]
[330863319,1719877851547,-153.0,0.000162,2]
[330863320,1719877851556,-206.0292962,0.000162,2]
[330863321,1719877851566,-153.0,0.000162,2]
[330863322,1719877851576,-153.0,0.000162,2]
[330863323,1719877851585,-153.0,0.000162,2]
[330863324,1719877851595,-153.0,0.000162,2]
[330863325,1719877851604,-138228.09829801,0.0001625,2]
[330863326,1719877851614,-57192.36374084,0.00016254,2]
[330863327,1719877851623,-782.7,0.00016254,2]
[330863328,1719877851634,-782.7,0.00016254,2]
[330863329,1719877851644,-782.7,0.00016254,2]
[330863330,1719877851653,-782.7,0.00016254,2]
[330863331,1719877851663,-782.7,0.00016254,2]
[330863332,1719877851672,-17244.25346368,0.00016255,2]
[330863333,1719877851681,-26080.98438024,0.00016255,2]
[330863334,1719877851691,-30000.0,0.00016255,2]
[330863335,1719877851700,-42219.78058169,0.00016255,2]
[330863336,1719877851709,-1568.73091691,0.00016255,2]
[330863337,1719877851718,-153.0,0.000163,2]
[330863338,1719877851727,-153.0,0.000163,2]
[330863339,1719877851736,-153.0,0.000163,2]
[330863340,1719877851745,-646.05,0.00016347,2]
[330863341,1719877851756,-304.04,0.00016347,2]
[330863342,1719877851765,-493.95,0.00016347,2]
[330863343,1719877851774,-1096.24,0.00016347,2]
[330863344,1719877851783,-270.36,0.00016347,2]
[330863345,1719877851793,-221.48,0.00016347,2]